Cogmind - Beta 15 @@@ ROGUE MODE // 2025.06.10 @ 05:38:52 Player: CL-1C0 Result: Self-destructed Performance ------------- Evolutions (2) 1000 Regions Visited (3) 600 Robots Destroyed (7) 35 Value Destroyed (75) 75 Prototype IDs (0) 0 Alien Tech Used (0) 0 Bonus (0) 0 TOTAL SCORE: 1710 Bonus ------- None Cogmind --------- Core Integrity 550/550 Matter 300/300 Energy 125/125 System Corruption 0% Temperature Cool (0) Movement Flying (34) Location -8/Materials Parts ------- > --- POWER (1) -------- Light Ion Engine > --- PROPULSION (3) --- Flight Unit Flight Unit Flight Unit > --- UTILITY (5) ------ Visual Processing Unit > --- WEAPON (2) ------- Mining Claw > --- INVENTORY (5) ---- Sensor Array Signal Interpreter Grenade Launcher Peak State ------------ > --- POWER ------------ Light Ion Engine > --- PROPULSION ------- Flight Unit Flight Unit Flight Unit > --- UTILITY ---------- Visual Processing Unit > --- WEAPON ----------- Mining Claw > --- INVENTORY -------- Sensor Array Signal Interpreter Grenade Launcher [Rating: 7] Favorites ----------- Power Light Ion Engine Engine Light Ion Engine Propulsion Flight Unit Treads Light Treads Flight Unit Flight Unit Utility Visual Processing Unit Processor Visual Processing Unit Weapon Mining Claw Launcher Grenade Launcher Slashing Weapon Mining Claw Build | -11 -10 -9 -8 ------- Run | Yrd Mat Mat Mat Slots Evolved 4 | . . 2 2 Power . | . . . . Propulsion 1 | . . 1 . Utility 3 | . . 1 2 Weapon . | . . . . Parts Attached 8 | 1 2 4 1 Power 1 | . . 1 . Engine 1 | . . 1 . Core . | . . . . Reactor . | . . . . Propulsion 4 | 1 . 3 . Treads 1 | 1 . . . Leg . | . . . . Wheel . | . . . . Hover . | . . . . Flight 3 | . . 3 . Utility 1 | . . . 1 Device . | . . . . Storage . | . . . . Processor 1 | . . . 1 Hackware . | . . . . Protection . | . . . . Artifact . | . . . . Weapon 2 | . 2 . . Energy Gun . | . . . . Energy Cannon . | . . . . Ballistic Gun . | . . . . Ballistic Cannon . | . . . . Launcher 1 | . 1 . . Special Weapon . | . . . . Impact Weapon . | . . . . Slashing Weapon 1 | . 1 . . Piercing Weapon . | . . . . Special Melee Weapon . | . . . . Unidentified Prototypes . | . . . . Parts Lost . | . . . . Power . | . . . . Propulsion . | . . . . Utility . | . . . . Weapon . | . . . . Highest Loss Streak . | . . . . To Critical Strikes . | . . . . Average Backups 2 | 4 2 2 3 Power . | 1 . . . Propulsion . | 2 1 . . Utility . | . . . 2 Weapon . | 1 . 1 1 Tool/Special . | . . . . Unused Backups 2 | . . . 2 Power . | . . . . Propulsion . | . . . . Utility 2 | . . . 2 Weapon . | . . . . Tool/Special . | . . . . Average Slot Usage (%) 38 | . 15 50 52 Engine 6 | . . 9 9 Treads 4 | . 14 . . Flight 18 | . . 29 27 Processor 1 | . . . 7 Slashing Weapon 7 | . 1 11 9 Peak Build Rating 7 | 1 2 5 7 Average Rating 4 | 1 1 4 6 On Entrance 3 | 6 1 2 5 Naked Turns . | . . . . Heaviest Build 5 | . 2 5 5 Greatest Support 12 | 3 3 12 12 Greatest Overweight (x) . | . . . . Average Overweight (x) . | . . . . Largest Inventory Capacity 5 | 5 5 5 5 Average Capacity 5 | 5 5 5 5 Most Carried 5 | 4 5 5 3 Average Carried 2 | 2 3 2 3 Final Capacity 5 | 5 5 5 5 Final Carried 5 | . 5 3 3 Class Distribution -------------------- 71% | Scavenger-Mutant 28% | Mutant Dominant Class ---------------- Mutant | -10/Materials Scavenger-Mutant | -9/Materials Scavenger-Mutant | -8/Materials Resources | -11 -10 -9 -8 ----------- Run | Yrd Mat Mat Mat Matter Collected 320 | 200 . . 120 Remotely . | . . . . Salvage Created 65 | . 65 . . Parts 10 | . 10 . . Haulers Intercepted . | . . . . Recyclers Shooed . | . . . . Parts Field Recycled . | . . . . Retrieved Matter . | . . . . Parts Self-Destructed . | . . . . Prevented . | . . . . Kills | -11 -10 -9 -8 ------- Run | Yrd Mat Mat Mat Combat Hostiles Destroyed 6 | . 6 . . AOE 6 | . 6 . . Classes Destroyed 2 | . 2 . . Builder 1 | . 1 . . Swarmer 6 | . 6 . . Best Kill Streak 7 | . 7 . . Combat Bots Only 6 | . 6 . . Max Kills in Single Turn 4 | . 4 . . Gunslinging . | . . . . Exploded 3 | . 3 . . Melee . | . . . . Uniques/NPCs Destroyed . | . . . . Combat | -11 -10 -9 -8 -------- Run | Yrd Mat Mat Mat Hostile Shots Fired 28 | . 12 14 2 Missed 11 | . 3 6 2 Hits 17 | . 9 8 . Projectile 17 | . 9 8 . Damage Taken 216 | . 122 94 . Core 61 | . 6 55 . Absorbed by Shields . | . . . . Core Remaining (%) 94 | 100 97 86 . Volleys Fired 3 | . 3 . . Largest 1 | . 1 . . Hottest 30 | . 30 . . Shots Fired 3 | . 3 . . Gun . | . . . . Cannon . | . . . . Launcher 3 | . 3 . . Special . | . . . . Kinetic . | . . . . Thermal . | . . . . Explosive 3 | . 3 . . Electromagnetic . | . . . . Robot Hit Streak . | . . . . Robot Miss Streak 3 | . 3 . . Penetration Max . | . . . . Secondary Targets . | . . . . Shots Hit Robots 1 | . . 1 . Core Hits 7 | . 7 . . Critical Kills . | . . . . Critical Parts Destroyed . | . . . . Critical Strikes . | . . . . Melee Attacks 6 | . . 2 4 Impact . | . . . . Slashing 6 | . . 2 4 Piercing . | . . . . Sneak Attacks 1 | . . 1 . Combat Hostiles . | . . . . Follow-up Attacks . | . . . . Damage Inflicted 321 | . 273 48 . Guns . | . . . . Cannons . | . . . . Explosions 273 | . 273 . . Melee 48 | . . 48 . Ramming . | . . . . Kinetic . | . . . . Thermal . | . . . . Explosive 273 | . 273 . . Electromagnetic . | . . . . Impact . | . . . . Slashing 48 | . . 48 . Piercing . | . . . . Highest Corruption . | . . . . Average Corruption . | . . . . Corruption Purged . | . . . . Corruption Blocked . | . . . . Overload Shots . | . . . . Overflow Damage 24 | . 24 . . Projectiles . | . . . . Explosions 24 | . 24 . . Melee . | . . . . Knockbacks . | . . . . Impact . | . . . . Kinetic . | . . . . Secondary . | . . . . Self-Inflicted Damage 56 | . 56 . . Shots 2 | . 2 . . Rammed . | . . . . Targets Rammed . | . . . . Kicked . | . . . . Crushed . | . . . . Highest Temperature 5 | . 5 . . Average Temperature 5 | . 5 . . Received Heat Transfer 27 | . . 27 . Siege Activations . | . . . . Martial Activations . | . . . . Shielding Activations . | . . . . Robots Disrupted . | . . . . Combat Hostiles . | . . . . Robots Corrupted . | . . . . Combat Hostiles . | . . . . Parts Fried . | . . . . Impact Corruptions . | . . . . Robots Melted . | . . . . Combat Hostiles . | . . . . Parts Melted . | . . . . Heat Transferred . | . . . . Parts Sabotaged . | . . . . Parts Stolen . | . . . . Parts Stripped . | . . . . Power Chain Reactions . | . . . . Alert | -11 -10 -9 -8 ------- Run | Yrd Mat Mat Mat Maximum Alert Level . | . . . . Low Security (%) 100 | 100 100 100 100 Level 1 . | . . . . Level 2 . | . . . . Level 3 . | . . . . Level 4 . | . . . . Level 5 . | . . . . High Security . | . . . . Max Security . | . . . . Peak Influence 161 | . 161 95 63 Initial 63 | . . 63 39 Average 81 | . 107 85 48 Influence Increases 270 | . 180 62 28 Destroy 0b10 Robot/C 120 | . 120 . . Destroy 0b10 Robot/NC 5 | . 5 . . Destroy Leader 20 | . 20 . . Successful Hack 55 | . 14 32 9 Disable Machine 15 | . . 15 . Destroy Structure 25 | . 21 . 4 Partial Spotted 15 | . . . 15 Lose Combat Pursuer 15 | . . 15 . Influence Decreases 223 | . 30 117 76 Entered New Map 143 | . . 87 56 Time Decay 80 | . 30 30 20 Squads Dispatched 4 | . . 1 3 Investigation 4 | . . 1 3 Extermination . | . . . . Reinforcement . | . . . . Assault . | . . . . Garrison . | . . . . Intercept . | . . . . Searches Triggered . | . . . . Construction Impeded . | . . . . Haulers Reinforced . | . . . . Active Scanning Responses . | . . . . Cargo Convoy Interrupts . | . . . . Stealth | -11 -10 -9 -8 --------- Run | Yrd Mat Mat Mat Distress Signals 2 | . . 1 1 Communications Jammed . | . . . . Distress Signals . | . . . . Times Spotted 21 | . 7 10 4 Peak Tracking Total 9 | . 3 9 5 Tactical Retreats 1 | . . 1 . Traps | -11 -10 -9 -8 ------- Run | Yrd Mat Mat Mat Traps Triggered 1 | . . 1 . Indirectly . | . . . . Trap Hack Attempts . | . . . . Triggered . | . . . . Disarmed . | . . . . Reprogrammed . | . . . . Reused . | . . . . Traps Extracted . | . . . . Installed . | . . . . Triggered . | . . . . Machines | -11 -10 -9 -8 ---------- Run | Yrd Mat Mat Mat Machines Disabled 1 | . . 1 . Max in Single Turn 1 | . . 1 . Machines Repaired . | . . . . Machines Dismantled . | . . . . Machines Sabotaged . | . . . . Overloaded Fab Kills . | . . . . Hacking | -11 -10 -9 -8 --------- Run | Yrd Mat Mat Mat Machines Accessed 9 | . 3 3 3 Terminals 9 | . 3 3 3 Fabricators . | . . . . Repair Stations . | . . . . Recycling Units . | . . . . Scanalyzers . | . . . . Garrison Access . | . . . . Total Hacks 24 | . 7 7 10 Successful 5 | . 2 2 1 Failed 19 | . 5 5 9 Catastrophic 10 | . 3 2 5 Database Lockouts . | . . . . Manual 22 | . 6 6 10 Terminals 24 | . 7 7 10 Fabricators . | . . . . Repair Stations . | . . . . Recycling Units . | . . . . Scanalyzers . | . . . . Garrison Access . | . . . . Terminal Hacks 4 | . 2 1 1 Level Access Points 2 | . 1 . 1 Branch Access Points 1 | . . 1 . Terminal Index 1 | . 1 . . Fabricator Hacks . | . . . . Repair Station Hacks . | . . . . Recycling Unit Hacks . | . . . . Scanalyzer . | . . . . Garrison Access Hacks . | . . . . Unauthorized Hacks 1 | . . 1 . Terminals 1 | . . 1 . Operators 1 | . . 1 . Fabricators . | . . . . Repair Stations . | . . . . Recycling Units . | . . . . Scanalyzers . | . . . . Garrison Access . | . . . . Data Cores Recovered . | . . . . Used . | . . . . Hacking Detections 9 | . 3 3 3 Full Trace Events 6 | . 2 1 3 Feedback Events . | . . . . Feedback Blocked . | . . . . Robot Schematics Acquired . | . . . . Robots Built . | . . . . Authchips . | . . . . Time . | . . . . Total Robot Build Rating . | . . . . Part Schematics Acquired . | . . . . Parts Built . | . . . . Authchips . | . . . . Time . | . . . . Total Part Build Rating . | . . . . Parts Repaired . | . . . . Time . | . . . . Parts Recycled . | . . . . Recycled Matter . | . . . . Retrieved Matter . | . . . . Retrieved Components . | . . . . Parts Scanalyzed . | . . . . Part Schematics Acquired . | . . . . Parts Damaged . | . . . . Bothacking | -11 -10 -9 -8 ------------ Run | Yrd Mat Mat Mat Used RIF Installer . | . . . . Robots Hacked . | . . . . Non-combat . | . . . . Combat . | . . . . Robot Hacks Applied . | . . . . Relay Couplers Released . | . . . . Fabnet Peak Effective % . | . . . . Robots Rewired . | . . . . Allies Hacked . | . . . . Hacks Repelled . | . . . . Allies | -11 -10 -9 -8 -------- Run | Yrd Mat Mat Mat Total Allies . | . . . . Largest Group . | . . . . Highest-Rated Group . | . . . . Highest-Rated Ally . | . . . . Total Orders . | . . . . Ally Attacks . | . . . . Total Damage . | . . . . Kills . | . . . . Allies Corrupted . | . . . . Allies Melted . | . . . . Intel | -11 -10 -9 -8 ------- Run | Yrd Mat Mat Mat Active Infowar (turns) 51 | . . . 51 Optics 51 | . . . 51 Robot Analysis Total . | . . . . Derelict Logs Recovered . | . . . . Drone Launches . | . . . . Drone Recoveries . | . . . . Exploration | -11 -10 -9 -8 ------------- Run | Yrd Mat Mat Mat Turns Passed 203 | 4 68 78 53 Spaces Moved 410 | 1 104 191 114 Core 105 | 1 104 . . Treads . | . . . . Legs . | . . . . Wheels . | . . . . Hover . | . . . . Flight 305 | . . 191 114 Fastest Speed 34 | 50 50 34 34 Average Speed 38 | 50 50 34 34 Slowest Speed 50 | 50 50 34 34 Overloaded Moves . | . . . . Propulsion Burnouts . | . . . . Robots Hopped 3 | . . 2 1 Potential Cave-ins . | . . . . Cave-ins Triggered . | . . . . Exploration Rate (%) 19 | 2 31 28 18 Regions Visited 3 Branch Regions . Pre-discovered Areas . | . . . . Known Exits Taken 1 | . 1 . . Unknown Exits Taken 2 | 1 . 1 . Scrap Searched . | . . . . Spaces Dug 4 | . . . 4 Terrain Destroyed 23 | . 19 . 4 Melee 4 | . . . 4 Projectile . | . . . . AOE 19 | . 19 . . Terrain Rammed . | . . . . Walls Destroyed . | . . . . Machines Disabled . | . . . . Actions | -11 -10 -9 -8 --------- Run | Yrd Mat Mat Mat Total 436 | 5 116 197 118 Wait . | . . . . Move 401 | . 103 186 112 Hop 3 | . . 2 1 Pick Up 7 | . 5 2 . Fast Attach 2 | . 1 . 1 Attach 7 | 1 2 4 . Detach 2 | . 2 . . Swap . | . . . . Drop 5 | 4 . 1 . Fire 3 | . 3 . . Melee 6 | . . 2 4 Ram . | . . . . Kick . | . . . . Crush . | . . . . Escape Stasis . | . . . . Rewire . | . . . . Trap . | . . . . Miscellaneous . | . . . . Route ------- -11/Scrapyard -10/Materials (discovered 3 exits: *Mat x3) -9/Materials (discovered 3 exits: *Mat / Min x2) -8/Materials (discovered 3 exits: Fac x3) History --------- Turn | Location | Event 1 | -11/Scrapyard | Released all parts (6) 5 | -11/Scrapyard | Discovered new exit (range 0) 5 | -11/Scrapyard | Entered Materials 60 | -10/Materials | Identified exit to Materials 73 | -10/Materials | Entered another Materials area 73 | -9/Materials | Evolved 2 slots: Propulsion x1, Utility x1 80 | -9/Materials | Identified exit to Mines 144 | -9/Materials | Discovered new exit (range 10) 151 | -9/Materials | Entered another Materials area 151 | -8/Materials | Evolved 2 slots: Utility x2 167 | -8/Materials | Identified exit to Factory 204 | -8/Materials | Self-destructed Last Messages --------------- 00159_ Current location identified: Materials 00159_ ALERT: Suspicious activity at Terminal M009. Dispatching Investigation squad. 00161_ Connecting with Terminal... 00161_ ALERT: Suspicious activity at Terminal M002. Dispatching Investigation squad. 00167_ Connecting with Terminal... >>Access(Main) Found 3 level access points to Factory: (19,14) (9,86) (81,86) Map updated. 00167_ ALERT: Suspicious activity at Terminal M004. Dispatching Investigation squad. 00176_ K-01 Serf collects debris. 00195_ Acquired 120 matter. 00200_ K-01 Serf collects debris. 00200_ W-25 Informer sends out distress signal. 00203_ K-01 Serf collects debris. Map ----- +----------------------------------------------------+ | | | | | | | | | | | | | | | | | | | | | | | | | | | | | | | | | | | | | ?????????????????????????????????????????????????? | | ?????????????????????????????????????????????????? | | ?????????????????????????????????????????????????? | | ????????????????????????###############??????????? | | ????????????????????????# T ???????????? | | ????????????????????????# !#??????????????? | | ????????????????????????# #??????????????? | | ????????????????????????#@ #??????????????? | | ????????????????????????# """ #??????????????? | | ????????????????????????# """ #??????????????? | | ????????????????????????# """ #??????????????? | | ????????????????????????#= #???????????#### | | ????????????????????????# #?????????? | | ????????##?????###??????# =k= #??????????? "" | | ????????#"######"######## === #?????????? """ | | ?????????# %# k === #????????#!= """ | | ?????????# """ # #????????#!! """ | | ?????????# "R" + #????????#= "" | | ????????## " " # """ #????????# ! | | ????????#" # """ #????????# | | ????????##[ !# """ #????????####### | | ????????#"####### #??????????#! ! | | ????????##??# #? ????????# | | ????????????# #? ??????# | | ????????????# #??? S?????# | | ????????????# ########## ##### #????""????# ! | | ????????????# ?????????# #???# #????? ????? | | ????????????/ ?????????+ #???# ########+######+ | | ??????????? # ?????????# #???# | | ????????????# ??????????# #???# | | ????????????# ??????????# #???# | | ????????????# ??????????# #???# ########### # | +----------------------------------------------------+ Best States ------------- Heat Dissipation 31 Energy Generation 10 Energy Capacity 125 Matter Stores 300 Matter Capacity 300 Sight Range 18 Terrain Scan Density 10 Evasion (%) 63 Item Schematics ----------------- None Robot Schematics ------------------ None Fabricated ------------ Nothing Repaired ---------- Nothing Alien Tech Used ----------------- None Achievements -------------- None Challenges ------------ None Game ------ Seed MultireflexHardlightMeganuke Manual? 0 Play Time 00:04:47 Cumulative 531.4 hours Start 2025.06.10 @ 05:35:09 End 2025.06.10 @ 05:38:52 Sessions 1 Manual Loads 0 Difficulty Rogue Special Mode None Game No. 616 Rogue 616 Adventurer 0 Explorer 0 Win Type - Total 18 Types 12/0/5/1/0/0/0/0/0/0 Lore% 83 Gallery% 82 Achievement% 82 Wizard Run 0 Options --------- Layout 0 ASCII 0 Keyboard 0 Movement Numpad Keybinds 0 Fullscreen 1 Font 18/SmallcapsGlow Map View 76x50 Zoom Use 0% Tactical HUD 1 Map Filters NONE Filters NONE Steam 1 RUN: a2a46acf-c0cd-4c61-bb9c-4407cba02526